lending/lending_fUSD_20240908
["ID","MTS","AMOUNT","RATE_DAILY","PERIOD"]
[337568306,1725826270498,-3186.3,0.00032185,30]
[337568307,1725826270534,-1673.63,0.00032185,30]
[337568308,1725826270568,-1367.31,0.00032185,30]
[337568309,1725826270602,-1635.82,0.00032185,30]
[337568310,1725826270636,-633.2,0.00032185,30]
[337568311,1725826270669,-685.13,0.00032185,30]
[337568312,1725826270703,-500.0,0.00032185,30]
[337568313,1725826270737,-3186.3,0.00032185,30]
[337568314,1725826270770,-1367.31,0.00032185,30]
[337568315,1725826270803,-1077.64,0.00032185,30]
[337568316,1725826270835,-1673.63,0.00032185,30]
[337568317,1725826270868,-1635.82,0.00032185,30]
[337568318,1725826270901,-685.13,0.00032185,30]
[337568319,1725826270935,-500.0,0.00032185,30]
[337568320,1725826270971,-1367.48473281,0.00032185,30]
[337568321,1725826271010,-3186.3,0.00032185,30]
[337568322,1725826271047,-500.0,0.00032185,30]
[337568323,1725826271080,-1673.63,0.00032185,30]
[337568324,1725826271113,-1077.83408604,0.00032185,30]
[337568325,1725826271146,-633.2,0.00032185,30]
[337568326,1725826271180,-1635.82,0.00032185,30]
[337568327,1725826271214,-500.0,0.00032185,30]
[337568328,1725826271250,-685.13,0.00032185,30]
[337568329,1725826271286,-3186.3,0.00032185,30]
[337568330,1725826271318,-500.0,0.00032185,30]
[337568331,1725826271350,-1673.63,0.00032185,30]
[337568332,1725826271382,-633.2,0.00032185,30]
[337568333,1725826271414,-1635.82,0.00032185,30]
[337568334,1725826271447,-500.0,0.00032185,30]
[337568335,1725826271479,-685.13,0.00032185,30]
[337568336,1725826271511,-3186.3,0.00032185,30]
[337568337,1725826271544,-500.0,0.00032185,30]
[337568338,1725826271578,-1673.63,0.00032185,30]
[337568339,1725826271611,-1635.82,0.00032185,30]
[337568340,1725826271645,-1061.94,0.00032185,30]
[337568341,1725826271678,-500.0,0.00032185,30]
[337568342,1725826271711,-685.13,0.00032185,30]
[337568343,1725826271746,-500.0,0.00032185,30]
[337568344,1725826271781,-3186.3,0.00032185,30]
[337568345,1725826271815,-1061.94,0.00032185,30]
[337568346,1725826271848,-1673.63,0.00032185,30]
[337568347,1725826271881,-504.72653689,0.00032185,30]
[337568348,1725826271914,-1635.82,0.00032185,30]
[337568349,1725826271946,-685.13,0.00032185,30]
[337568350,1725826271979,-500.0,0.00032185,30]
[337568351,1725826272012,-633.2,0.00032185,30]
[337568352,1725826272046,-1061.94,0.00032185,30]
[337568353,1725826272079,-1673.63,0.00032185,30]
[337568354,1725826272112,-3186.3,0.00032185,30]
[337568355,1725826272144,-1635.82,0.00032185,30]
[337568356,1725826272177,-685.13,0.00032185,30]
[337568357,1725826272209,-554.91864545,0.00032185,30]
[337568358,1725826272242,-633.2,0.00032185,30]
[337568359,1725826272275,-1061.94,0.00032185,30]
[337568360,1725826272309,-1673.63,0.00032185,30]
[337568361,1725826272344,-1635.82,0.00032185,30]
[337568362,1725826272378,-3186.41832543,0.00032185,30]
[337568363,1725826272413,-685.13,0.00032185,30]
[337568364,1725826272450,-633.2,0.00032185,30]
[337568365,1725826272486,-1061.94,0.00032185,30]
[337568366,1725826272519,-1673.63,0.00032185,30]
[337568367,1725826272558,-1635.82,0.00032185,30]
[337568368,1725826272592,-685.13,0.00032185,30]
[337568369,1725826272625,-633.2,0.00032185,30]
[337568370,1725826272658,-500.0,0.00032185,30]
[337568371,1725826272691,-1061.94,0.00032185,30]
[337568372,1725826272724,-1673.63,0.00032185,30]
[337568373,1725826272760,-1635.82,0.00032185,30]
[337568374,1725826272796,-685.13,0.00032185,30]
[337568375,1725826272829,-633.2,0.00032185,30]
[337568376,1725826272861,-500.0,0.00032185,30]
[337568377,1725826272894,-1673.63,0.00032185,30]
[337568378,1725826272928,-500.0,0.00032185,30]
[337568379,1725826273167,-1061.94,0.00032185,30]
[337568380,1725826273204,-1635.82,0.00032185,30]
[337568381,1725826273240,-685.13,0.00032185,30]
[337568382,1725826273276,-633.35151732,0.00032185,30]
[337568383,1725826273309,-500.0,0.00032185,30]
[337568384,1725826273346,-500.0,0.00032185,30]
[337568385,1725826273381,-1061.94,0.00032185,30]
[337568386,1725826273416,-1673.63,0.00032185,30]
[337568387,1725826273663,-685.13,0.00032185,30]
[337568388,1725826273699,-1635.82,0.00032185,30]
[337568389,1725826273735,-500.0,0.00032185,30]
[337568390,1725826273772,-1061.94,0.00032185,30]
[337568391,1725826273808,-500.0,0.00032185,30]
[337568392,1725826273844,-1673.63,0.00032185,30]
[337568393,1725826273880,-685.13,0.00032185,30]
[337568394,1725826273915,-1635.82,0.00032185,30]
[337568395,1725826273950,-500.0,0.00032185,30]
[337568396,1725826273985,-1061.94,0.00032185,30]
[337568397,1725826274020,-500.0,0.00032185,30]
[337568398,1725826274057,-1673.63,0.00032185,30]
[337568399,1725826274092,-685.13,0.00032185,30]
[337568400,1725826274127,-1635.82,0.00032185,30]
[337568401,1725826274163,-500.0,0.00032185,30]
[337568402,1725826274197,-1061.94,0.00032185,30]
[337568403,1725826274231,-500.0,0.00032185,30]
[337568404,1725826274269,-1673.63,0.00032185,30]
[337568405,1725826274305,-685.13,0.00032185,30]
[337568406,1725826274340,-1635.82,0.00032185,30]
[337568407,1725826274376,-1061.94,0.00032185,30]
[337568408,1725826274410,-1673.63,0.00032185,30]
[337568409,1725826274445,-500.0,0.00032185,30]
[337568410,1725826274478,-500.0,0.00032185,30]
[337568411,1725826274513,-685.13,0.00032185,30]
[337568412,1725826274547,-1635.82,0.00032185,30]
[337568413,1725826274581,-1061.94,0.00032185,30]
[337568414,1725826274616,-1673.63,0.00032185,30]
[337568415,1725826274651,-500.0,0.00032185,30]
[337568416,1725826274687,-500.0,0.00032185,30]
[337568417,1725826274725,-538.48843957,0.00032185,30]
[337568418,1725826274762,-685.13,0.00032185,30]
[337568419,1725826274799,-1635.82,0.00032185,30]
[337568420,1725826274835,-1673.63,0.00032185,30]
[337568421,1725826274872,-1061.94,0.00032185,30]
[337568422,1725826274908,-258.67526214,0.00032185,30]
[337568423,1725826274945,-500.0,0.00032185,30]
[337568424,1725826274982,-685.13,0.00032185,30]
[337568425,1725826275019,-1635.96776345,0.00032185,30]
[337568426,1725826275055,-1673.80303457,0.00032185,30]
[337568427,1725826275092,-685.14461715,0.00032185,30]
[337568428,1725826275127,-1061.94,0.00032185,30]
[337568429,1725826275162,-1237.42,0.00032185,30]
[337568430,1725826275196,-500.0,0.00032185,30]
[337568431,1725826275230,-500.0,0.00032185,30]
[337568432,1725826275263,-1061.94,0.00032185,30]
[337568433,1725826275297,-1237.42,0.00032185,30]
[337568434,1725826275333,-500.0,0.00032185,30]
[337568435,1725826275368,-500.0,0.00032185,30]
[337568436,1725826275403,-1237.42,0.00032185,30]
[337568437,1725826275437,-500.0,0.00032185,30]
[337568438,1725826275471,-1061.94,0.00032185,30]
[337568439,1725826275509,-500.0,0.00032185,30]
[337568440,1725826275555,-500.0,0.00032185,30]
[337568441,1725826275591,-1237.42,0.00032185,30]
[337568442,1725826275627,-500.0,0.00032185,30]
[337568443,1725826275661,-500.0,0.00032185,30]
[337568444,1725826275696,-500.0,0.00032185,30]
[337568445,1725826275730,-1237.42,0.00032185,30]
[337568446,1725826275764,-1061.94,0.00032185,30]
[337568447,1725826275799,-573.33,0.00032185,30]
[337568448,1725826275836,-500.0,0.00032185,30]
[337568449,1725826275871,-500.0,0.00032185,30]
[337568450,1725826275906,-500.0,0.00032185,30]
[337568451,1725826275941,-1237.42,0.00032185,30]
[337568452,1725826275975,-1061.94,0.00032185,30]
[337568453,1725826276010,-573.33,0.00032185,30]
[337568454,1725826276045,-500.0,0.00032185,30]
[337568455,1725826276091,-500.0,0.00032185,30]
[337568456,1725826276125,-500.0,0.00032185,30]
[337568457,1725826276160,-1061.94,0.00032185,30]
[337568458,1725826276195,-573.33,0.00032185,30]
[337568459,1725826276231,-1237.42,0.00032185,30]
[337568460,1725826276265,-597.97810944,0.00032185,30]
[337568461,1725826276298,-718.39,0.00032185,30]
[337568462,1725826276333,-1193.33,0.00032185,30]
[337568463,1725826276367,-500.0,0.00032185,30]
[337568464,1725826276400,-500.0,0.00032185,30]
[337568465,1725826276435,-156.43781121,0.00032185,30]
[337568466,1725826276471,-521.58,0.00032185,30]
[337568467,1725826276507,-1061.94,0.00032185,30]
[337568468,1725826276543,-573.33,0.00032185,30]
[337568469,1725826276580,-1237.42,0.00032185,30]
[337568470,1725826276617,-718.39,0.00032185,30]
[337568471,1725826276655,-500.0,0.00032185,30]
[337568472,1725826276691,-1193.33,0.00032185,30]
[337568473,1725826276726,-504.06866483,0.00032185,30]
[337568474,1725826276762,-521.58,0.00032185,30]
[337568475,1725826276800,-1061.94,0.00032185,30]
[337568476,1725826276837,-573.33,0.00032185,30]
[337568477,1725826276871,-1237.42,0.00032185,30]
[337568478,1725826276907,-1018.75,0.00032185,30]
[337568479,1725826276943,-718.39,0.00032185,30]
[337568480,1725826276978,-500.0,0.00032185,30]
[337568481,1725826277014,-1193.33,0.00032185,30]
[337568482,1725826277051,-1061.94,0.00032185,30]
[337568483,1725826277294,-573.33,0.00032185,30]
[337568484,1725826277331,-1018.75,0.00032185,30]
[337568485,1725826277366,-718.39,0.00032185,30]
[337568486,1725826277399,-1237.42,0.00032185,30]
[337568487,1725826277432,-402.46368433,0.00032185,30]
[337568488,1725826277466,-521.58,0.00032185,30]
[337568489,1725826277498,-1193.33,0.00032185,30]
[337568490,1725826277533,-1062.1224542,0.00032185,30]
[337568491,1725826277566,-573.33,0.00032185,30]
[337568492,1725826277599,-1018.75,0.00032185,30]
[337568493,1725826277631,-718.39,0.00032185,30]
[337568494,1725826277663,-521.58,0.00032185,30]
[337568495,1725826277697,-1193.33,0.00032185,30]
[337568496,1725826277731,-573.33,0.00032185,30]
[337568497,1725826277765,-1018.75,0.00032185,30]
[337568498,1725826277800,-1237.42,0.00032185,30]
[337568499,1725826277835,-718.39,0.00032185,30]
[337568500,1725826277868,-521.58,0.00032185,30]
[337568501,1725826277901,-1193.33,0.00032185,30]
[337568502,1725826277934,-573.33,0.00032185,30]
[337568503,1725826277966,-1018.75,0.00032185,30]
[337568504,1725826277999,-1237.42,0.00032185,30]
[337568505,1725826278032,-718.39,0.00032185,30]
[337568506,1725826278066,-521.58,0.00032185,30]
[337568507,1725826278099,-1193.33,0.00032185,30]
[337568508,1725826278133,-573.33,0.00032185,30]
[337568509,1725826278164,-1237.42,0.00032185,30]
[337568510,1725826278195,-718.39,0.00032185,30]
[337568511,1725826278229,-521.58,0.00032185,30]
[337568512,1725826278262,-1193.33,0.00032185,30]
[337568513,1725826278294,-1237.42,0.00032185,30]
[337568514,1725826278328,-573.33,0.00032185,30]
[337568515,1725826278361,-718.39,0.00032185,30]
[337568516,1725826278393,-521.58,0.00032185,30]
[337568517,1725826278425,-1193.33,0.00032185,30]
[337568518,1725826278461,-1018.75,0.00032185,30]
[337568519,1725826278496,-1237.42,0.00032185,30]
[337568520,1725826278532,-573.33,0.00032185,30]
[337568521,1725826278568,-718.39,0.00032185,30]
[337568522,1725826278601,-521.58,0.00032185,30]
[337568523,1725826278635,-1193.33,0.00032185,30]
[337568524,1725826278669,-1018.75,0.00032185,30]
[337568525,1725826278704,-573.33,0.00032185,30]
[337568526,1725826278739,-1237.42,0.00032185,30]
[337568527,1725826278773,-718.39,0.00032185,30]
[337568528,1725826278807,-521.58,0.00032185,30]
[337568529,1725826278840,-1193.33,0.00032185,30]
[337568530,1725826278874,-1018.75,0.00032185,30]
[337568531,1725826278908,-500.0,0.00032185,30]
[337568532,1725826278942,-573.33,0.00032185,30]
[337568533,1725826278976,-1237.42,0.00032185,30]
[337568534,1725826279010,-521.58,0.00032185,30]
[337568535,1725826279043,-718.39,0.00032185,30]
[337568536,1725826279077,-1193.33,0.00032185,30]
[337568537,1725826279112,-1018.75,0.00032185,30]
[337568538,1725826279147,-547.61516288,0.00032185,30]
[337568539,1725826279182,-1237.42,0.00032185,30]
[337568540,1725826279216,-521.58,0.00032185,30]
[337568541,1725826279248,-573.33,0.00032185,30]
[337568542,1725826279281,-1018.75,0.00032185,30]
[337568543,1725826279315,-718.39,0.00032185,30]
[337568544,1725826279349,-1193.33,0.00032185,30]
[337568545,1725826279382,-1237.42,0.00032185,30]
[337568546,1725826279414,-573.33,0.00032185,30]
[337568547,1725826279449,-521.58,0.00032185,30]
[337568548,1725826279483,-1018.75,0.00032185,30]
[337568549,1725826279517,-1193.33,0.00032185,30]
[337568550,1725826279560,-718.39,0.00032185,30]
[337568551,1725826279596,-1237.42,0.00032185,30]
[337568552,1725826279630,-500.0,0.00032185,30]
[337568553,1725826279664,-521.58,0.00032185,30]
[337568554,1725826279699,-573.33,0.00032185,30]
[337568555,1725826279735,-1018.75,0.00032185,30]
[337568556,1725826279770,-1193.33,0.00032185,30]
[337568557,1725826279804,-718.39,0.00032185,30]
[337568558,1725826279838,-500.0,0.00032185,30]
[337568559,1725826279870,-573.33,0.00032185,30]
[337568560,1725826279904,-1237.42,0.00032185,30]
[337568561,1725826279937,-521.58,0.00032185,30]
[337568562,1725826279972,-1193.33,0.00032185,30]
[337568563,1725826280006,-718.39,0.00032185,30]
[337568564,1725826280043,-1018.75,0.00032185,30]
[337568565,1725826280079,-500.0,0.00032185,30]
[337568566,1725826280116,-500.0,0.00032185,30]
[337568567,1725826280152,-521.58,0.00032185,30]
[337568568,1725826280188,-573.33,0.00032185,30]
[337568569,1725826280224,-1237.42,0.00032185,30]
[337568570,1725826280262,-1018.75,0.00032185,30]
[337568571,1725826280297,-1193.33,0.00032185,30]
[337568572,1725826280332,-804.98,0.00032185,30]
[337568573,1725826280364,-718.39,0.00032185,30]
[337568574,1725826280401,-500.0,0.00032185,30]
[337568575,1725826280437,-521.58,0.00032185,30]
[337568576,1725826280474,-1237.42,0.00032185,30]
[337568577,1725826280510,-500.0,0.00032185,30]
[337568578,1725826280545,-573.33,0.00032185,30]
[337568579,1725826280579,-1018.75,0.00032185,30]
[337568580,1725826280612,-718.39,0.00032185,30]
[337568581,1725826280646,-804.98,0.00032185,30]
[337568582,1725826280678,-1193.33,0.00032185,30]
[337568583,1725826280712,-500.0,0.00032185,30]
[337568584,1725826280746,-521.58,0.00032185,30]
[337568585,1725826280786,-1237.60954714,0.00032185,30]
[337568586,1725826280821,-500.0,0.00032185,30]
[337568587,1725826281049,-1018.75,0.00032185,30]
[337568588,1725826281086,-718.39,0.00032185,30]
[337568589,1725826281122,-573.33,0.00032185,30]
[337568590,1725826281155,-804.98,0.00032185,30]
[337568591,1725826281188,-1193.33,0.00032185,30]
[337568592,1725826281221,-500.0,0.00032185,30]
[337568593,1725826281253,-500.0,0.00032185,30]
[337568594,1725826281287,-500.0,0.00032185,30]
[337568595,1725826281320,-521.58,0.00032185,30]
[337568596,1725826281353,-500.0,0.00032185,30]
[337568597,1725826281387,-1018.75,0.00032185,30]
[337568598,1725826281420,-573.33,0.00032185,30]
[337568599,1725826281457,-804.98,0.00032185,30]
[337568600,1725826281492,-718.39,0.00032185,30]
[337568601,1725826281530,-1193.33,0.00032185,30]
[337568602,1725826281564,-500.0,0.00032185,30]
[337568603,1725826281600,-500.0,0.00032185,30]
[337568604,1725826281636,-500.0,0.00032185,30]
[337568605,1725826281670,-521.58,0.00032185,30]
[337568606,1725826281704,-500.0,0.00032185,30]
[337568607,1725826281737,-1018.75,0.00032185,30]
[337568608,1725826281771,-573.33,0.00032185,30]
[337568609,1725826281805,-1193.33,0.00032185,30]
[337568610,1725826281838,-718.39,0.00032185,30]
[337568611,1725826281872,-804.98,0.00032185,30]
[337568612,1725826281907,-500.0,0.00032185,30]
[337568613,1725826281942,-500.0,0.00032185,30]
[337568614,1725826281977,-500.0,0.00032185,30]
[337568615,1725826282011,-521.58,0.00032185,30]
[337568616,1725826282049,-1018.75,0.00032185,30]
[337568617,1725826282084,-500.0,0.00032185,30]
[337568618,1725826282121,-804.98,0.00032185,30]
[337568619,1725826282155,-573.41329383,0.00032185,30]
[337568620,1725826282189,-718.39,0.00032185,30]
[337568621,1725826282222,-1193.33,0.00032185,30]
[337568622,1725826282258,-500.0,0.00032185,30]
[337568623,1725826282292,-500.0,0.00032185,30]
[337568624,1725826282325,-521.58,0.00032185,30]
[337568625,1725826282356,-500.0,0.00032185,30]
[337568626,1725826282387,-500.0,0.00032185,30]
[337568627,1725826282424,-718.39,0.00032185,30]
[337568628,1725826282463,-1018.75,0.00032185,30]
[337568629,1725826282500,-1193.33,0.00032185,30]
[337568630,1725826282538,-804.98,0.00032185,30]
[337568631,1725826282570,-500.0,0.00032185,30]
[337568632,1725826282604,-500.0,0.00032185,30]
[337568633,1725826282637,-521.58,0.00032185,30]
[337568634,1725826282671,-811.77,0.00032185,30]
[337568635,1725826282706,-718.60442879,0.00032185,30]
[337568636,1725826282740,-1018.75,0.00032185,30]
[337568637,1725826282775,-1193.34494822,0.00032185,30]
[337568638,1725826282810,-500.0,0.00032185,30]
[337568639,1725826282848,-804.98,0.00032185,30]
[337568640,1725826282878,-500.0,0.00032185,30]
[337568641,1725826282907,-500.0,0.00032185,30]
[337568642,1725826282936,-511.11718332,0.00032185,30]
[337568643,1725826282965,-811.77,0.00032185,30]
[337568644,1725826282996,-1018.75,0.00032185,30]
[337568645,1725826283026,-521.60793752,0.00032185,30]
[337568646,1725826283062,-542.88694369,0.00032185,30]
[337568647,1725826283092,-500.0,0.00032185,30]
[337568648,1725826283121,-500.0,0.00032185,30]
[337568649,1725826283153,-804.98,0.00032185,30]
[337568650,1725826283185,-811.77,0.00032185,30]
[337568651,1725826283219,-1018.75,0.00032185,30]
[337568652,1725826283254,-500.0,0.00032185,30]
[337568653,1725826283286,-681.05,0.00032185,30]
[337568654,1725826283325,-804.98,0.00032185,30]
[337568655,1725826283357,-500.0,0.00032185,30]
[337568656,1725826283391,-500.0,0.00032185,30]
[337568657,1725826283428,-1018.950986,0.00032185,30]
[337568658,1725826283461,-811.77,0.00032185,30]
[337568659,1725826283492,-502.64830006,0.00032185,30]
[337568660,1725826283527,-804.98,0.00032185,30]
[337568661,1725826283563,-681.05,0.00032185,30]
[337568662,1725826283597,-500.0,0.00032185,30]
[337568663,1725826283630,-500.0,0.00032185,30]
[337568664,1725826283665,-811.77,0.00032185,30]
[337568665,1725826283698,-681.05,0.00032185,30]
[337568666,1725826283732,-804.98,0.00032185,30]
[337568667,1725826283767,-500.0,0.00032185,30]
[337568668,1725826283800,-811.77,0.00032185,30]
[337568669,1725826283837,-681.05,0.00032185,30]
[337568670,1725826283870,-453.25321249,0.00032185,30]
[337568671,1725826283902,-811.77,0.00032185,30]
[337568672,1725826283935,-500.0,0.00032185,30]
[337568673,1725826283967,-804.98,0.00032185,30]
[337568674,1725826283999,-681.05,0.00032185,30]
[337568675,1725826284031,-811.77,0.00032185,30]
[337568676,1725826284066,-500.0,0.00032185,30]
[337568677,1725826284098,-804.98,0.00032185,30]
[337568678,1725826284132,-681.05,0.00032185,30]
[337568679,1725826284166,-500.0,0.00032185,30]
[337568680,1725826284198,-811.77,0.00032185,30]
[337568681,1725826284230,-804.98,0.00032185,30]
[337568682,1725826284263,-1483.44,0.00032185,30]
[337568683,1725826284295,-681.05,0.00032185,30]
[337568684,1725826284327,-500.0,0.00032185,30]
[337568685,1725826284362,-811.77,0.00032185,30]
[337568686,1725826284395,-500.0,0.00032185,30]
[337568687,1725826284431,-804.98,0.00032185,30]
[337568688,1725826284464,-1483.44,0.00032185,30]
[337568689,1725826284499,-500.0,0.00032185,30]
[337568690,1725826284535,-681.05,0.00032185,30]
[337568691,1725826284759,-811.77,0.00032185,30]
[337568692,1725826284793,-500.0,0.00032185,30]
[337568693,1725826284827,-500.0,0.00032185,30]
[337568694,1725826284858,-804.98,0.00032185,30]
[337568695,1725826284892,-148.07661055,0.00032185,30]
[337568696,1725826288443,-460.43123519,0.000128,2]
[337568697,1725826288455,-336.16948236,0.000128,2]
[337568698,1725826288464,-340.0,0.00012899,2]
[337568699,1725826288474,-300.0,0.00012899,2]
[337568700,1725826288483,-1868.41955764,0.000129,2]
[337568701,1725826288495,-301.5568529,0.000129,2]
[337568702,1725826288510,-1525.1233529,0.000129,2]
[337568703,1725826288521,-1241.68,0.000129,2]
[337568704,1725826288532,-78865.10238292,0.000129,2]
[337568705,1725826288541,-1000.0,0.000129,2]
[337568706,1725826288550,-292.5487,0.000129,2]
[337568707,1725826288560,-1118.4846,0.000129,2]
[337568708,1725826288569,-214.48284402,0.000129,2]
[337568709,1725826288578,-2500.0,0.000129,2]
[337568710,1725826288587,-151.98,0.0001299,2]
[337568711,1725826288596,-500.0,0.00012999,2]
[337568712,1725826288606,-58590.63809906,0.00013,2]
[337568713,1725826288617,-87440.21538619,0.00013,2]
[337568714,1725826288707,-500.0,0.00012999,2]
[337568715,1725826288716,-53000.00000001,0.00013,2]
[337568716,1725826288727,-267.7675,0.00013,2]
[337568717,1725826288785,-588.4207,0.00013,2]
[337568718,1725826288800,-21343.13379714,0.00013,2]
[337568719,1725826288811,-984.30726176,0.00013,2]
[337568720,1725826289327,-3000.0206322,0.00013,2]
[337568721,1725826289395,-535.01,0.000129,2]
[337568722,1725826289466,-2964.06142465,0.000129,2]
[337568723,1725826289475,-42914.4908939,0.00013,2]
[337568724,1725826375935,750.0,0.00011,2]
[337568725,1725826436126,279.23,0.00010906,2]
[337568729,1725826578882,180.26,0.00012347,2]
[337568730,1725826622269,-250.0,0.00012517,2]
[337568731,1725826622290,-50.0,0.00012573,2]
[337568732,1725826625525,-250.0,0.00012573,2]
[337568733,1725826635435,-10072.0819,0.00012574,2]
[337568734,1725826635457,-20935.82659871,0.00012674,2]
[337568735,1725826644296,-2964.17340129,0.00012674,2]
[337568736,1725826646197,500.0,0.00012347,2]
[337568737,1725826646486,500.0,0.00012347,2]
[337568738,1725826646604,500.0,0.00012347,2]
[337568739,1725826646821,675.0,0.00012347,2]
[337568740,1725826654179,243.75,0.00010959,2]
[337568741,1725826801336,154.57,0.00012471,2]
[337568743,1725826820064,225.24,0.00012417,2]
[337568744,1725826905931,7606.26,0.00012342,2]
[337568745,1725826937215,250.0,0.00012471,2]
[337568746,1725826943680,288.74,0.00010601,2]
[337568748,1725827009777,902.91,0.00012371,2]
[337568749,1725827015118,250.0,0.00012371,2]
[337568750,1725827041466,295.01,0.00012325,2]
[337568751,1725827079104,561.09,0.00012353,2]
[337568752,1725827148557,177.51,0.00010959,2]
[337568754,1725827179440,250.0,0.00012326,2]
[337568755,1725827215745,500.0,0.00012427,2]
[337568756,1725827217745,188.87,0.00012427,2]
[337568757,1725827230908,500.0,0.000123,2]
[337568758,1725827243301,245.52035036,0.000101,2]
[337568759,1725827280246,3640.38623188,0.0001,2]
[337568762,1725827378165,23900.0,0.00012422,2]
[337568763,1725827389928,-8562.65075044,0.0001251,2]
[337568764,1725827389972,-2075.8526006,0.0001251,2]
[337568765,1725827412964,130.18526527,0.000125,2]
[337568766,1725827412991,30.92473473,0.000125,2]
[337568767,1725827425809,274.3,0.00010466,2]
[337568821,1725827432949,-496.49109154,0.0001251,2]
[337568822,1725827432959,-21.36402051,0.00012529,2]
[337568823,1725827432970,-1066.56431726,0.00012529,2]
[337568824,1725827432982,-785.42033485,0.00012529,2]
[337568825,1725827433006,-482.73538408,0.00012529,2]
[337568826,1725827433018,-1033.9862433,0.00012529,2]
[337568827,1725827433029,-900.0,0.00012529,2]
[337568828,1725827433040,-196.46360958,0.00012619,2]
[337568829,1725827433053,-488.09131171,0.00012619,2]
[337568830,1725827433063,-339.04581114,0.00012629,2]
[337568831,1725827433089,-16712.03418886,0.00012629,2]
[337568832,1725827433099,-274.3,0.0001273,2]
[337568833,1725827433108,-31007.90849871,0.00012736,2]
[337568834,1725827433117,-421.34449989,0.00012736,2]
[337568835,1725827433127,-150.99,0.00012762,2]
[337568836,1725827433136,-817.61,0.00012762,2]
[337568837,1725827433145,-10232.67,0.000128,2]
[337568838,1725827433154,-800.0,0.000128,4]
[337568839,1725827433164,-1000.0,0.00012848,2]
[337568840,1725827433173,-150.0,0.00012899,2]
[337568841,1725827433182,-2167.2867,0.000129,2]
[337568842,1725827433191,-3351.40451559,0.000129,2]
[337568843,1725827433201,-4944.4545,0.000129,2]
[337568844,1725827433210,-1600.0,0.000129,4]
[337568845,1725827433219,-7500.0,0.000129,2]
[337568846,1725827433228,-169.66382044,0.000129,2]
[337568847,1725827433237,-616.427,0.000129,2]
[337568848,1725827433246,-192.8091389,0.000129,2]
[337568849,1725827433256,-160.74092612,0.000129,2]
[337568850,1725827433266,-311.00026652,0.000129,2]
[337568851,1725827433276,-151.6,0.0001299,2]
[337568852,1725827433286,-263.2636356,0.0001299,2]
[337568853,1725827433295,-500.0,0.00012999,2]
[337568854,1725827433304,-268.98612969,0.00012999,2]
[337568855,1725827433314,-500.0,0.00012999,2]
[337568856,1725827433323,-429.50007452,0.00012999,2]
[337568857,1725827433333,-172.84134985,0.00012999,2]
[337568858,1725827433342,-493.2084788,0.00012999,2]
[337568859,1725827433351,-133177.49637313,0.00013,2]
[337568864,1725827438104,-1869.92772421,0.00013,2]
[337568865,1725827438163,-587.5728,0.00013,2]
[337568866,1725827438176,-2673.28413778,0.00013,2]
[337568867,1725827438219,-2222.99999999,0.00013,2]
[337568868,1725827438232,-1520.98047815,0.00013,2]
[337568869,1725827438247,-4314.98017366,0.00013,2]
[337568889,1725827440132,-900.71549999,0.00013,2]